fUSD/lending_fUSD_20250502
["ID","MTS","AMOUNT","RATE_DAILY","PERIOD"]
[359648286,1746216649825,-450.0,0.00019994,2]
[359648287,1746216649835,-250.69866356,0.00019994,2]
[359648288,1746216649844,-450.0,0.00019994,2]
[359648289,1746216649854,-450.0,0.00019994,2]
[359648290,1746216649864,-450.0,0.00019994,2]
[359648291,1746216649873,-2514.64,0.00019994,2]
[359648292,1746216649882,-544.36,0.00019994,2]
[359648293,1746216649891,-450.0,0.00019994,2]
[359648294,1746216649901,-450.0,0.00019994,2]
[359648295,1746216649910,-450.0,0.00019994,2]
[359648296,1746216649920,-450.0,0.00019994,2]
[359648297,1746216649930,-1100.32,0.00019994,2]
[359648298,1746216649939,-450.0,0.00019994,2]
[359648299,1746216649949,-3227.65,0.00019994,2]
[359648300,1746216649960,-405.21,0.00019994,2]
[359648301,1746216649970,-450.0,0.00019994,2]
[359648302,1746216649980,-450.0,0.00019994,2]
[359648303,1746216649989,-450.0,0.00019994,2]
[359648304,1746216649999,-450.0,0.00019994,2]
[359648305,1746216650009,-555.5,0.00019994,2]
[359648306,1746216650018,-739.49,0.00019994,2]
[359648307,1746216650028,-450.0,0.00019994,2]
[359648308,1746216650037,-522.39,0.00019994,2]
[359648309,1746216650048,-1505.27,0.00019994,2]
[359648310,1746216650058,-755.37,0.00019994,2]
[359648311,1746216650067,-2296.46,0.00019994,2]
[359648312,1746216650077,-450.0,0.00019994,2]
[359648313,1746216650087,-607.36,0.00019994,2]
[359648314,1746216650097,-450.0,0.00019994,2]
[359648315,1746216650107,-793.61,0.00019994,2]
[359648316,1746216650116,-450.0,0.00019994,2]
[359648317,1746216650125,-1626.07,0.00019994,2]
[359648318,1746216650134,-544.22,0.00019994,2]
[359648319,1746216650144,-450.0,0.00019994,2]
[359648320,1746216650153,-450.0,0.00019994,2]
[359648321,1746216650163,-616.88,0.00019994,2]
[359648322,1746216650173,-450.0,0.00019994,2]
[359648323,1746216650183,-450.0,0.00019994,2]
[359648324,1746216650192,-500.0,0.00019995,2]
[359648325,1746216650202,-150.0,0.00019995,2]
[359648326,1746216650212,-441.0,0.00019995,2]
[359648327,1746216650222,-500.0,0.00019995,2]
[359648328,1746216650232,-500.0,0.00019995,2]
[359648329,1746216650241,-521.73356972,0.00019995,2]
[359648330,1746216650251,-500.0,0.00019995,2]
[359648331,1746216650260,-500.0,0.00019995,2]
[359648332,1746216650269,-500.0,0.00019995,2]
[359648333,1746216650278,-500.0,0.00019995,2]
[359648334,1746216650288,-150.0,0.00019995,2]
[359648335,1746216650298,-150.0,0.00019995,2]
[359648336,1746216650308,-437.0,0.00019995,2]
[359648337,1746216650318,-500.0,0.00019995,2]
[359648338,1746216650327,-500.0,0.00019995,2]
[359648339,1746216650336,-450.0,0.00019995,2]
[359648340,1746216650346,-450.0,0.00019995,2]
[359648341,1746216650356,-584.94,0.00019995,2]
[359648342,1746216650365,-450.0,0.00019995,2]
[359648343,1746216650436,-450.0,0.00019995,2]
[359648344,1746216650446,-450.0,0.00019995,2]
[359648345,1746216650455,-450.0,0.00019995,2]
[359648346,1746216650464,-450.0,0.00019995,2]
[359648347,1746216650474,-450.0,0.00019995,2]
[359648348,1746216650484,-450.0,0.00019995,2]
[359648349,1746216650495,-450.0,0.00019995,2]
[359648350,1746216650505,-450.0,0.00019995,2]
[359648351,1746216650514,-450.0,0.00019995,2]
[359648352,1746216650523,-450.0,0.00019995,2]
[359648353,1746216650533,-450.0,0.00019995,2]
[359648354,1746216650542,-820.15,0.00019995,2]
[359648355,1746216650553,-597.81026485,0.00019995,2]
[359648356,1746216650561,-450.0,0.00019995,2]
[359648357,1746216650571,-450.0,0.00019995,2]
[359648358,1746216650580,-603.93,0.00019995,2]
[359648359,1746216650590,-1096.67,0.00019995,2]
[359648360,1746216650599,-450.0,0.00019995,2]
[359648361,1746216650609,-450.0,0.00019995,2]
[359648362,1746216650619,-509.35,0.00019995,2]
[359648363,1746216650629,-450.0,0.00019995,2]
[359648364,1746216650638,-450.0,0.00019995,2]
[359648365,1746216650648,-450.0,0.00019995,2]
[359648366,1746216650657,-300.0,0.00019995,2]
[359648367,1746216650667,-552.68,0.00019995,2]
[359648368,1746216650676,-450.0,0.00019995,2]
[359648369,1746216650686,-450.0,0.00019995,2]
[359648370,1746216650695,-911.99,0.00019995,2]
[359648371,1746216650705,-450.0,0.00019995,2]
[359648372,1746216650715,-450.0,0.00019995,2]
[359648373,1746216650725,-450.0,0.00019995,2]
[359648374,1746216650735,-450.0,0.00019995,2]
[359648375,1746216650744,-695.85,0.00019995,2]
[359648376,1746216650754,-450.0,0.00019995,2]
[359648377,1746216650763,-450.0,0.00019995,2]
[359648378,1746216650773,-551.31,0.00019995,2]
[359648379,1746216650782,-364.98739259,0.00019995,2]
[359648380,1746216650792,-450.0,0.00019995,2]
[359648381,1746216650802,-223.36576253,0.00019995,2]
[359648382,1746216650811,-450.0,0.00019995,2]
[359648383,1746216650820,-2761.53,0.00019995,2]
[359648384,1746216650829,-450.0,0.00019995,2]
[359648385,1746216650839,-450.0,0.00019995,2]
[359648386,1746216650849,-450.0,0.00019995,2]
[359648387,1746216650858,-450.0,0.00019995,2]
[359648388,1746216650869,-450.0,0.00019995,2]
[359648389,1746216650879,-502.73,0.00019995,2]
[359648390,1746216650890,-450.0,0.00019995,2]
[359648391,1746216650900,-1148.63,0.00019995,2]
[359648392,1746216650910,-450.0,0.00019995,2]
[359648393,1746216650919,-450.0,0.00019995,2]
[359648394,1746216650929,-450.0,0.00019995,2]
[359648395,1746216650939,-1193.52,0.00019995,2]
[359648396,1746216650948,-450.0,0.00019995,2]
[359648397,1746216650958,-450.0,0.00019995,2]
[359648398,1746216650967,-746.61,0.00019995,2]
[359648399,1746216650977,-450.0,0.00019995,2]
[359648400,1746216650987,-450.0,0.00019995,2]
[359648401,1746216650997,-599.32,0.00019995,2]
[359648402,1746216651007,-450.0,0.00019995,2]
[359648403,1746216651016,-455.29,0.00019995,2]
[359648404,1746216651025,-450.0,0.00019995,2]
[359648405,1746216651035,-450.0,0.00019995,2]
[359648406,1746216651044,-560.05773253,0.00019995,2]
[359648407,1746216651053,-450.0,0.00019995,2]
[359648408,1746216651063,-453.35,0.00019995,2]
[359648409,1746216651073,-450.0,0.00019995,2]
[359648410,1746216651082,-500.0,0.00019999,2]
[359648411,1746216651091,-675.05638042,0.00019999,2]
[359648412,1746216651111,-500.0,0.00019999,2]
[359648413,1746216651121,-300.0,0.00019999,2]
[359648414,1746216651132,-300.0,0.00019999,2]
[359648415,1746216651142,-259.59690718,0.0002,2]
[359648416,1746216651151,-413575.3998395,0.0002,2]
[359648417,1746216651161,-2969794.72701836,0.0002,2]
[359648418,1746216651537,-274.40651042,0.0002,2]
[359648419,1746216651550,-2177.6,0.0002,2]
[359648420,1746216651562,-2748.85,0.0002,2]
[359648421,1746216651658,-1698.19642143,0.0002,2]
[359648422,1746216651674,-2761.53470239,0.0002,2]
[359648423,1746216651683,-2800.37765799,0.0002,2]
[359648424,1746216652150,-12.91653925,0.00019719,2]
[359648425,1746216652162,-1135.96567531,0.00019719,2]
[359648426,1746216652560,-735.13778544,0.00019719,2]
[359648427,1746216652571,-450.0,0.0001972,2]
[359648428,1746216652583,-151.0,0.00019874,2]
[359648429,1746216652594,-573.64381105,0.000199,2]
[359648430,1746216652605,-1884.02,0.00019993,2]
[359648431,1746216652615,-450.0,0.00019994,2]
[359648432,1746216652624,-109149.27414768,0.0002,2]
[359648433,1746216652639,-969.77,0.0002,2]
[359648436,1746216825603,-2050.0,0.00022,12]
[359648438,1746216967087,250.0,0.00018812,2]
[359648439,1746217095543,500.0,0.00032876,120]
[359648444,1746217337400,1000.0,0.00018776,2]
[359648445,1746217338089,-250.0,0.0001952,2]
[359648451,1746217462273,174.38,0.00015039,2]
[359648453,1746217508253,329.13627866,0.0003287,60]
[359648454,1746217528449,2000.0,0.00011,2]
[359648457,1746217595689,250.0,0.00018795,7]
[359648458,1746217626652,161.32,0.00018783,2]
[359648459,1746217641219,678.83,0.00016865,2]
[359648460,1746217641447,678.83,0.00019129,2]
[359648461,1746217678300,2204.80406315,0.0001,2]
[359648462,1746217678321,1795.19593685,0.0001,2]
[359648463,1746217683321,281.2297751,0.00019719,18]
[359648464,1746217683348,76.7702249,0.00019719,18]
[359648465,1746217683572,186.91989908,0.00019993,18]
[359648466,1746217700016,194.65874869,0.000135,2]
[359648467,1746217737050,164.43,0.00019327,2]
[359648468,1746217754504,250.0,0.00017,2]
[359648469,1746217755615,173.38627247,0.00019,2]
[359648470,1746217755639,126.61372753,0.00019,2]
[359648472,1746217832347,-300.0,0.00019618,2]
[359648473,1746217832356,-1200.0,0.00019618,2]
[359648474,1746217832365,-300.0,0.00019618,2]
[359648475,1746217832374,-34668.49001884,0.00019618,2]
[359648476,1746217832385,-624.79046279,0.00019618,2]
[359648477,1746217832395,-2763.35323409,0.00019618,2]
[359648478,1746217832406,-668.59142846,0.00019618,2]
[359648479,1746217832423,-644.80165007,0.00019618,2]
[359648480,1746217832469,-15969.77234345,0.00019618,2]
[359648481,1746217832479,-200.0,0.00019618,2]
[359648482,1746217832488,-632.81121136,0.00019618,2]
[359648483,1746217832497,-200.0,0.00019618,2]
[359648484,1746217832507,-200.0,0.00019619,2]
[359648485,1746217832517,-534.5893,0.00019619,2]
[359648486,1746217832526,-1469.3792,0.00019619,2]
[359648487,1746217832536,-162.90455592,0.00019619,2]
[359648488,1746217832546,-1567.12085036,0.00019619,2]
[359648489,1746217832555,-584.41120523,0.00019619,2]
[359648490,1746217832564,-194.55219148,0.00019619,2]
[359648491,1746217832574,-1567.12085034,0.0001965,2]
[359648492,1746217832583,-162.90455588,0.00019675,2]
[359648493,1746217832592,-1567.12085034,0.00019681,2]
[359648494,1746217832602,-15296.73935336,0.00019708,2]
[359648495,1746217832611,-1567.12085034,0.00019713,2]
[359648496,1746217832620,-850.0,0.00019716,2]
[359648497,1746217832630,-500.0,0.00019717,2]
[359648498,1746217832639,-500.0,0.00019717,2]
[359648499,1746217832649,-500.0,0.00019717,2]
[359648500,1746217832658,-408.15888111,0.00019717,2]
[359648501,1746217832670,-91.84111889,0.00019717,2]
[359648502,1746217832679,-500.0,0.00019717,2]
[359648503,1746217832688,-500.0,0.00019717,2]
[359648504,1746217832698,-473.67488426,0.00019717,2]
[359648505,1746217832709,-26.32511574,0.00019717,2]
[359648506,1746217832718,-294.60842082,0.00019717,2]
[359648511,1746217838324,-361.68345758,0.00019619,2]
[359648513,1746217838435,-6574.08033045,0.00019619,2]
[359648514,1746217838445,-205.39157918,0.00019717,2]
[359648515,1746217838455,-500.0,0.00019717,2]
[359648516,1746217838465,-500.0,0.00019717,2]
[359648517,1746217838475,-500.0,0.00019717,2]
[359648518,1746217838486,-500.0,0.00019717,2]
[359648519,1746217838496,-500.0,0.00019717,2]
[359648520,1746217838506,-500.0,0.00019717,2]
[359648521,1746217838516,-500.0,0.00019717,2]
[359648522,1746217838527,-500.0,0.00019717,2]
[359648523,1746217838538,-500.0,0.00019717,2]
[359648524,1746217838548,-500.0,0.00019717,2]
[359648525,1746217838559,-444.57598182,0.00019717,2]
[359648526,1746217838568,-500.0,0.00019717,2]
[359648527,1746217838578,-500.0,0.00019717,2]
[359648528,1746217838588,-500.0,0.00019717,2]
[359648529,1746217838598,-500.0,0.00019717,2]
[359648530,1746217838609,-1859.02906828,0.00019718,2]
[359648531,1746217838620,-450.0,0.00019718,2]
[359648532,1746217838630,-450.0,0.00019718,2]
[359648533,1746217838639,-450.0,0.00019718,2]
[359648534,1746217838649,-675.99,0.00019718,2]
[359648535,1746217838660,-450.11929238,0.00019718,2]
[359648536,1746217838670,-450.0,0.00019718,2]
[359648537,1746217838679,-450.0,0.00019718,2]
[359648538,1746217838689,-450.0,0.00019718,2]
[359648539,1746217838699,-450.0,0.00019718,2]
[359648540,1746217838709,-450.0,0.00019718,2]
[359648541,1746217838718,-450.0,0.00019718,2]
[359648542,1746217838728,-450.0,0.00019718,2]
[359648543,1746217838738,-450.0,0.00019718,2]
[359648544,1746217838748,-450.0,0.00019718,2]
[359648545,1746217838758,-450.0,0.00019718,2]
[359648547,1746217838768,-450.0,0.00019718,2]
[359648549,1746217838778,-450.0,0.00019718,2]
[359648550,1746217838787,-450.0,0.00019718,2]
[359648551,1746217838797,-450.0,0.00019718,2]
[359648552,1746217838807,-450.0,0.00019718,2]
[359648553,1746217838817,-450.0,0.00019718,2]
[359648554,1746217838827,-450.0,0.00019718,2]
[359648555,1746217838837,-450.0,0.00019718,2]
[359648556,1746217838847,-450.0,0.00019718,2]
[359648557,1746217838857,-635.79111404,0.00019718,2]
[359648558,1746217838878,-319.50888596,0.00019718,2]
[359648559,1746217838888,-450.0,0.00019718,2]
[359648560,1746217838898,-450.0,0.00019718,2]
[359648561,1746217838909,-450.0,0.00019718,2]
[359648562,1746217838918,-450.0,0.00019718,2]
[359648563,1746217838928,-450.0,0.00019718,2]
[359648564,1746217838937,-450.0,0.00019718,2]
[359648565,1746217838948,-450.0,0.00019718,2]
[359648566,1746217838958,-450.0,0.00019718,2]
[359648567,1746217838967,-381.44260816,0.00019718,2]
[359648568,1746217838984,-351.68739184,0.00019718,2]
[359648569,1746217838993,-450.0,0.00019718,2]
[359648570,1746217839003,-450.0,0.00019718,2]
[359648571,1746217839013,-450.0,0.00019718,2]
[359648572,1746217839022,-450.0,0.00019718,2]
[359648573,1746217839032,-231.81260813,0.00019718,2]
[359648574,1746217839045,-218.18739187,0.00019718,2]
[359648575,1746217839055,-450.0,0.00019718,2]
[359648576,1746217839064,-450.0,0.00019718,2]
[359648577,1746217839074,-467.95,0.00019718,2]
[359648578,1746217839084,-432.22803903,0.00019718,2]
[359648585,1746217840551,-6935.76378802,0.0001965,2]
[359648586,1746217840562,-138.3441054,0.00019718,2]
[359648587,1746217840571,-450.0,0.00019718,2]
[359648588,1746217840581,-450.0,0.00019718,2]
[359648589,1746217840591,-477.67,0.00019718,2]
[359648590,1746217840601,-450.0,0.00019718,2]
[359648591,1746217840611,-450.0,0.00019718,2]
[359648592,1746217840623,-450.0,0.00019718,2]
[359648593,1746217840633,-450.0,0.00019718,2]
[359648594,1746217840643,-450.0,0.00019718,2]
[359648595,1746217840653,-450.0,0.00019718,2]
[359648596,1746217840662,-450.0,0.00019718,2]
[359648597,1746217840672,-450.0,0.00019718,2]
[359648598,1746217840682,-450.0,0.00019718,2]
[359648599,1746217840692,-450.0,0.00019718,2]
[359648600,1746217840702,-450.0,0.00019718,2]
[359648601,1746217840712,-450.0,0.00019718,2]
[359648602,1746217840726,-450.0,0.00019718,2]
[359648603,1746217840736,-450.0,0.00019718,2]
[359648604,1746217840747,-894.130531,0.00019718,2]
[359648605,1746217840758,-632.544365,0.00019718,2]
[359648606,1746217840769,-450.0,0.00019718,2]
[359648607,1746217840779,-571.99,0.00019718,2]
[359648608,1746217840789,-450.0,0.00019718,2]
[359648609,1746217840799,-450.0,0.00019718,2]
[359648610,1746217840809,-450.0,0.00019718,2]
[359648611,1746217840819,-450.0,0.00019718,2]
[359648612,1746217840829,-450.0,0.00019718,2]
[359648613,1746217840840,-450.0,0.00019718,2]
[359648614,1746217840850,-781.54,0.00019718,2]
[359648615,1746217840861,-421.82931636,0.00019718,2]
[359648616,1746217840873,-450.0,0.00019718,2]
[359648617,1746217840883,-450.0,0.00019718,2]
[359648618,1746217840894,-450.0,0.00019718,2]
[359648619,1746217840904,-450.0,0.00019718,2]
[359648620,1746217840915,-8210.44,0.00019718,2]
[359648621,1746217840925,-450.0,0.00019718,2]
[359648622,1746217840935,-450.0,0.00019718,2]
[359648623,1746217840945,-569.07,0.00019718,2]
[359648624,1746217840956,-450.0,0.00019718,2]
[359648625,1746217840966,-450.0,0.00019718,2]
[359648626,1746217840976,-450.0,0.00019718,2]
[359648627,1746217840986,-450.0,0.00019718,2]
[359648628,1746217840996,-450.0,0.00019718,2]
[359648629,1746217841006,-450.0,0.00019718,2]
[359648630,1746217841016,-450.0,0.00019718,2]
[359648631,1746217841026,-458.48,0.00019718,2]
[359648632,1746217841036,-450.0,0.00019718,2]
[359648633,1746217841046,-987.32,0.00019718,2]
[359648634,1746217841055,-6326.37,0.00019718,2]
[359648635,1746217841065,-1042.83,0.00019718,2]
[359648636,1746217841075,-450.0,0.00019718,2]
[359648637,1746217841085,-450.0,0.00019718,2]
[359648638,1746217841095,-450.0,0.00019718,2]
[359648639,1746217841105,-450.0,0.00019718,2]
[359648640,1746217841115,-450.0,0.00019718,2]
[359648641,1746217841125,-450.0,0.00019718,2]
[359648642,1746217841135,-450.0,0.00019718,2]
[359648643,1746217841146,-450.0,0.00019718,2]
[359648644,1746217841156,-113908.83,0.00019718,2]
[359648645,1746217841166,-490.67,0.00019718,2]
[359648646,1746217841176,-450.0,0.00019718,2]
[359648647,1746217841186,-576.18,0.00019718,2]
[359648648,1746217841196,-450.0,0.00019718,2]
[359648649,1746217841206,-450.0,0.00019718,2]
[359648650,1746217841216,-450.0,0.00019718,2]
[359648651,1746217841226,-450.0,0.00019718,2]
[359648652,1746217841236,-482.91,0.00019718,2]
[359648653,1746217841245,-450.0,0.00019718,2]
[359648654,1746217841255,-472.65,0.00019718,2]
[359648655,1746217841264,-624.95,0.00019718,2]
[359648656,1746217841274,-450.0,0.00019718,2]
[359648657,1746217841284,-458.3,0.00019718,2]
[359648658,1746217841294,-544.82,0.00019718,2]
[359648659,1746217841303,-553.69,0.00019718,2]
[359648660,1746217841312,-450.0,0.00019718,2]
[359648661,1746217841322,-724.04,0.00019718,2]
[359648662,1746217841331,-487.74,0.00019718,2]
[359648663,1746217841341,-500.0,0.00019718,2]
[359648664,1746217841351,-450.0,0.00019718,2]
[359648665,1746217841361,-450.0,0.00019718,2]
[359648666,1746217841372,-2369.61,0.00019718,2]
[359648667,1746217841381,-450.0,0.00019718,2]
[359648668,1746217841392,-450.0,0.00019718,2]
[359648669,1746217841403,-562.69,0.00019718,2]
[359648670,1746217841414,-450.0,0.00019718,2]
[359648671,1746217841424,-450.0,0.00019718,2]
[359648672,1746217841434,-562.81,0.00019718,2]
[359648673,1746217841444,-450.0,0.00019718,2]
[359648674,1746217841453,-450.0,0.00019718,2]
[359648675,1746217841463,-450.0,0.00019718,2]
[359648676,1746217841473,-450.0,0.00019718,2]
[359648677,1746217841482,-489.03,0.00019718,2]
[359648678,1746217841492,-450.0,0.00019718,2]
[359648679,1746217841502,-522.33,0.00019718,2]
[359648680,1746217841511,-5218.71,0.00019718,2]
[359648681,1746217841520,-450.0,0.00019718,2]
[359648682,1746217841531,-450.0,0.00019718,2]
[359648683,1746217841541,-516.0,0.00019718,2]
[359648684,1746217841551,-450.0,0.00019718,2]
[359648685,1746217841561,-1068.42,0.00019718,2]
[359648686,1746217841570,-459.57,0.00019718,2]
[359648687,1746217841580,-555.5,0.00019718,2]
[359648688,1746217841590,-544.36,0.00019718,2]
[359648689,1746217841600,-1171.41,0.00019718,2]
[359648690,1746217841609,-3227.65,0.00019718,2]
[359648691,1746217841619,-450.0,0.00019718,2]
[359648692,1746217841629,-450.0,0.00019718,2]
[359648693,1746217841638,-1875.44,0.00019718,2]
[359648694,1746217841648,-450.0,0.00019718,2]
[359648695,1746217841659,-450.0,0.00019718,2]
[359648696,1746217841669,-450.0,0.00019718,2]
[359648697,1746217841679,-450.0,0.00019718,2]
[359648698,1746217841688,-482.84,0.00019718,2]
[359648699,1746217841698,-522.39,0.00019718,2]
[359648700,1746217841707,-450.0,0.00019718,2]
[359648701,1746217841717,-450.0,0.00019718,2]
[359648702,1746217841727,-793.61,0.00019718,2]
[359648703,1746217841736,-280.25488685,0.00019718,2]
[359648704,1746217841746,-450.0,0.00019718,2]
[359648705,1746217841755,-450.0,0.00019718,2]
[359648706,1746217841766,-450.0,0.00019718,2]
[359648707,1746217841775,-450.0,0.00019718,2]
[359648708,1746217841787,-450.0,0.00019718,2]
[359648709,1746217841800,-616.88,0.00019718,2]
[359648710,1746217841811,-450.0,0.00019718,2]
[359648711,1746217841821,-550.89,0.00019718,2]
[359648712,1746217841831,-450.0,0.00019718,2]
[359648713,1746217841840,-450.0,0.00019718,2]
[359648714,1746217841850,-1626.07,0.00019718,2]
[359648715,1746217841860,-450.0,0.00019718,2]
[359648716,1746217841871,-1505.27,0.00019718,2]
[359648717,1746217841883,-1080.47,0.00019718,2]
[359648718,1746217841894,-1727.01,0.00019718,2]
[359648719,1746217841904,-450.0,0.00019718,2]
[359648720,1746217841914,-739.49,0.00019718,2]
[359648721,1746217841925,-450.0,0.00019718,2]
[359648722,1746217841935,-450.0,0.00019718,2]
[359648723,1746217841945,-450.0,0.00019718,2]
[359648724,1746217841957,-1726.33,0.00019718,2]
[359648725,1746217841967,-822.15,0.00019718,2]
[359648726,1746217841976,-544.22,0.00019718,2]
[359648727,1746217841986,-450.0,0.00019718,2]
[359648728,1746217841995,-450.0,0.00019718,2]
[359648729,1746217842005,-450.0,0.00019719,2]
[359648730,1746217842015,-450.0,0.00019719,2]
[359648731,1746217842025,-450.0,0.00019719,2]
[359648732,1746217842035,-250.0,0.00019719,2]
[359648733,1746217842044,-450.0,0.00019719,2]
[359648734,1746217842054,-450.0,0.00019719,2]
[359648735,1746217842064,-450.0,0.00019719,2]
[359648736,1746217842074,-482.31,0.00019719,2]
[359648737,1746217842084,-450.0,0.00019719,2]
[359648738,1746217842094,-450.0,0.00019719,2]
[359648739,1746217842105,-237.82795749,0.00019719,2]
[359648740,1746217842114,-408.15101168,0.00019719,2]
[359648741,1746217842125,-450.0,0.00019719,2]
[359648742,1746217842136,-450.0,0.00019719,2]
[359648743,1746217842489,-450.0,0.00019719,2]
[359648744,1746217842499,-450.0,0.00019719,2]
[359648745,1746217842509,-450.0,0.00019719,2]
[359648746,1746217842519,-450.0,0.00019719,2]
[359648747,1746217842528,-450.0,0.00019719,2]
[359648748,1746217842538,-450.0,0.00019719,2]
[359648749,1746217842548,-450.0,0.00019719,2]
[359648750,1746217842558,-450.0,0.00019719,2]
[359648751,1746217842568,-450.0,0.00019719,2]
[359648752,1746217842578,-450.0,0.00019719,2]
[359648753,1746217842588,-450.0,0.00019719,2]
[359648754,1746217842597,-450.0,0.00019719,2]
[359648755,1746217842607,-566.26,0.00019719,2]
[359648756,1746217842616,-301.18044399,0.00019719,2]
[359648757,1746217842626,-450.0,0.00019719,2]
[359648758,1746217842637,-450.0,0.00019719,2]
[359648759,1746217842646,-451.18,0.00019719,2]
[359648760,1746217842656,-450.0,0.00019719,2]
[359648761,1746217842666,-690.18,0.00019719,2]
[359648762,1746217842676,-988.67,0.00019719,2]
[359648763,1746217842687,-450.0,0.00019719,2]
[359648764,1746217842697,-450.0,0.00019719,2]
[359648765,1746217842707,-450.0,0.00019719,2]
[359648766,1746217842717,-450.0,0.00019719,2]
[359648767,1746217842727,-450.0,0.00019719,2]
[359648768,1746217842737,-450.0,0.00019719,2]
[359648769,1746217842747,-450.0,0.00019719,2]
[359648770,1746217842757,-552.46,0.00019719,2]
[359648771,1746217842767,-776.95,0.00019719,2]
[359648772,1746217842781,-450.0,0.00019719,2]
[359648773,1746217842791,-450.0,0.00019719,2]
[359648774,1746217842800,-450.0,0.00019719,2]
[359648775,1746217842810,-554.71,0.00019719,2]
[359648776,1746217842820,-450.0,0.00019719,2]
[359648777,1746217842830,-474.5,0.00019719,2]
[359648778,1746217842839,-567.43,0.00019719,2]
[359648779,1746217842849,-486.82,0.00019719,2]
[359648780,1746217842859,-450.0,0.00019719,2]
[359648781,1746217842869,-450.0,0.00019719,2]
[359648782,1746217842883,-302.32396757,0.00019719,2]
[359648783,1746217842896,-450.0,0.00019719,2]
[359648784,1746217842906,-466.54,0.00019719,2]
[359648785,1746217842916,-492.61,0.00019719,2]
[359648786,1746217842925,-450.0,0.00019719,2]
[359648787,1746217842935,-450.0,0.00019719,2]
[359648788,1746217842945,-215.66564025,0.00019719,2]
[359648789,1746217842955,-450.0,0.00019719,2]
[359648790,1746217842966,-450.0,0.00019719,2]
[359648791,1746217842976,-450.0,0.00019719,2]
[359648792,1746217842985,-450.0,0.00019719,2]
[359648793,1746217842995,-486.56,0.00019719,2]
[359648794,1746217843005,-679.73,0.00019719,2]
[359648795,1746217843015,-1178.86,0.00019719,2]
[359648796,1746217843024,-660.43,0.00019719,2]
[359648798,1746217843034,-450.0,0.00019719,2]
[359648799,1746217843044,-450.0,0.00019719,2]
[359648800,1746217843054,-450.0,0.00019719,2]
[359648801,1746217843063,-450.0,0.00019719,2]
[359648802,1746217843073,-450.0,0.00019719,2]
[359648803,1746217843083,-450.0,0.00019719,2]
[359648805,1746217843093,-450.0,0.00019719,2]
[359648806,1746217843102,-450.0,0.00019719,2]
[359648807,1746217843112,-450.0,0.00019719,2]
[359648808,1746217843121,-450.0,0.00019719,2]
[359648809,1746217843131,-450.0,0.00019719,2]
[359648810,1746217843141,-643.25,0.00019719,2]
[359648812,1746217843151,-522.10119627,0.00019719,2]
[359648813,1746217843160,-450.0,0.00019719,2]
[359648814,1746217843170,-450.0,0.00019719,2]
[359648815,1746217843180,-554.09941886,0.00019719,2]
[359648816,1746217843190,-1616.69,0.00019719,2]
[359648817,1746217843200,-450.0,0.00019719,2]